fUSD/lending_fUSD_20250506
["ID","MTS","AMOUNT","RATE_DAILY","PERIOD"]
[360067412,1746534645768,-452.24188441,0.00019697,2]
[360067415,1746534645778,-13876.56593238,0.00019697,2]
[360067418,1746534645802,-3883.30406762,0.00019697,2]
[360067420,1746534645811,-450.0,0.00019697,2]
[360067422,1746534645820,-450.0,0.00019697,2]
[360067424,1746534645830,-434.06739347,0.00019697,2]
[360067427,1746534645842,-15.93260653,0.00019697,2]
[360067429,1746534645851,-450.0,0.00019697,2]
[360067431,1746534645861,-450.0,0.00019697,2]
[360067433,1746534645871,-450.0,0.00019697,2]
[360067435,1746534645880,-450.0,0.00019697,2]
[360067437,1746534645890,-450.0,0.00019697,2]
[360067439,1746534645900,-450.0,0.00019697,2]
[360067441,1746534645909,-500.0,0.00019697,2]
[360067443,1746534645919,-500.0,0.00019697,2]
[360067445,1746534645929,-500.0,0.00019697,2]
[360067446,1746534645938,-267.76950448,0.00019697,2]
[360067449,1746534645949,-1994.06533843,0.00019698,2]
[360067451,1746534645958,-8014.1967,0.00019698,2]
[360067453,1746534645968,-6109.7487,0.00019698,2]
[360067455,1746534645978,-198704.7673,0.00019698,2]
[360067457,1746534645988,-3926.30963263,0.000197,2]
[360067459,1746534645998,-4575.08687212,0.00019708,2]
[360067461,1746534646008,-451.81482292,0.00019729,2]
[360067463,1746534646018,-1994.06533843,0.00019732,2]
[360067465,1746534646028,-3926.30963263,0.00019733,2]
[360067467,1746534646038,-4575.08687212,0.00019736,2]
[360067469,1746534646047,-167.98843184,0.00019749,2]
[360067471,1746534646057,-2538.1055933,0.00019764,2]
[360067473,1746534646067,-1994.06533843,0.00019765,2]
[360067475,1746534646076,-3926.30963263,0.00019767,2]
[360067477,1746534646090,-296.85328452,0.00019796,2]
[360067479,1746534646099,-500.0,0.00019796,2]
[360067481,1746534646109,-263.46,0.00019796,2]
[360067483,1746534646118,-450.0,0.00019796,2]
[360067485,1746534646128,-380.30240514,0.00019796,2]
[360067487,1746534646138,-450.0,0.00019796,2]
[360067489,1746534646147,-450.0,0.00019796,2]
[360067491,1746534646157,-450.0,0.00019796,2]
[360067493,1746534646166,-450.0,0.00019796,2]
[360067495,1746534646177,-450.0,0.00019796,2]
[360067497,1746534646186,-450.0,0.00019796,2]
[360067499,1746534646195,-450.0,0.00019796,2]
[360067501,1746534646205,-450.0,0.00019796,2]
[360067503,1746534646215,-450.0,0.00019796,2]
[360067505,1746534646224,-280.23,0.00019796,2]
[360067507,1746534646234,-450.0,0.00019796,2]
[360067509,1746534646244,-450.0,0.00019796,2]
[360067511,1746534646254,-450.0,0.00019796,2]
[360067513,1746534646263,-450.0,0.00019796,2]
[360067515,1746534646272,-450.0,0.00019796,2]
[360067517,1746534646282,-450.0,0.00019796,2]
[360067519,1746534646291,-327.44942935,0.00019796,2]
[360067521,1746534646302,-631.1,0.00019796,2]
[360067523,1746534646311,-450.0,0.00019796,2]
[360067525,1746534646321,-450.0,0.00019796,2]
[360067527,1746534646330,-450.0,0.00019796,2]
[360067529,1746534646340,-450.0,0.00019796,2]
[360067531,1746534646349,-499.65,0.00019797,2]
[360067533,1746534646359,-450.0,0.00019797,2]
[360067535,1746534646368,-450.0,0.00019797,2]
[360067537,1746534646378,-450.0,0.00019797,2]
[360067539,1746534646387,-450.0,0.00019797,2]
[360067541,1746534646396,-450.0,0.00019797,2]
[360067543,1746534646406,-450.0,0.00019797,2]
[360067545,1746534646415,-450.0,0.00019797,2]
[360067547,1746534646425,-450.0,0.00019797,2]
[360067549,1746534646435,-450.0,0.00019797,2]
[360067551,1746534646444,-450.0,0.00019797,2]
[360067553,1746534646454,-450.0,0.00019797,2]
[360067555,1746534646464,-450.0,0.00019797,2]
[360067557,1746534646473,-450.0,0.00019797,2]
[360067559,1746534646483,-450.0,0.00019797,2]
[360067561,1746534646493,-450.0,0.00019797,2]
[360067563,1746534646503,-450.0,0.00019797,2]
[360067565,1746534646513,-450.0,0.00019797,2]
[360067567,1746534646524,-450.0,0.00019797,2]
[360067569,1746534646533,-193.01,0.00019797,2]
[360067571,1746534646543,-450.0,0.00019797,2]
[360067573,1746534646553,-450.0,0.00019797,2]
[360067575,1746534646562,-450.0,0.00019797,2]
[360067577,1746534646572,-450.0,0.00019797,2]
[360067579,1746534646582,-450.0,0.00019797,2]
[360067581,1746534646591,-450.0,0.00019797,2]
[360067583,1746534646601,-450.0,0.00019797,2]
[360067585,1746534646611,-450.0,0.00019797,2]
[360067587,1746534646620,-450.0,0.00019797,2]
[360067589,1746534646630,-450.0,0.00019797,2]
[360067591,1746534646640,-450.0,0.00019797,2]
[360067593,1746534646649,-450.0,0.00019797,2]
[360067595,1746534646659,-450.0,0.00019797,2]
[360067597,1746534646670,-450.0,0.00019797,2]
[360067599,1746534646679,-450.0,0.00019797,2]
[360067601,1746534646689,-450.0,0.00019797,2]
[360067603,1746534646698,-450.0,0.00019797,2]
[360067605,1746534646708,-450.0,0.00019797,2]
[360067607,1746534646717,-1994.06533843,0.00019799,2]
[360067609,1746534646727,-294.35118373,0.00019799,2]
[360067611,1746534646736,-450.0,0.00019799,2]
[360067613,1746534646747,-450.0,0.00019799,2]
[360067615,1746534646756,-17759.87,0.00019799,2]
[360067617,1746534646766,-1910.0,0.000198,2]
[360067619,1746534646775,-3926.30963263,0.000198,2]
[360067621,1746534646785,-611.0,0.00019808,2]
[360067623,1746534646794,-1994.06533843,0.00019833,2]
[360067625,1746534646803,-3926.30963263,0.00019833,2]
[360067627,1746534646813,-151.0,0.00019842,2]
[360067629,1746534646822,-151.0,0.00019843,2]
[360067631,1746534646831,-151.0,0.00019844,2]
[360067633,1746534646840,-151.0,0.00019845,2]
[360067635,1746534646849,-929.145,0.00019846,2]
[360067637,1746534646858,-1433.157,0.00019846,2]
[360067639,1746534646867,-6764.0,0.00019846,2]
[360067640,1746534646876,-4015.0,0.00019846,2]
[360067642,1746534646886,-151.0,0.00019846,2]
[360067644,1746534646895,-151.0,0.00019847,2]
[360067646,1746534646904,-1994.06533843,0.00019866,2]
[360067648,1746534646913,-3926.30963263,0.00019867,2]
[360067650,1746534646923,-509.37765771,0.00019873,2]
[360067653,1746534646932,-500.0,0.00019873,2]
[360067655,1746534646941,-500.0,0.00019873,2]
[360067656,1746534646951,-500.0,0.00019873,2]
[360067658,1746534646960,-218.48434508,0.00019873,2]
[360067660,1746534646969,-500.0,0.00019873,2]
[360067662,1746534646977,-501.06170248,0.00019873,2]
[360067664,1746534646986,-275.08140563,0.00019885,2]
[360067666,1746534646995,-12500.0,0.00019891,2]
[360067668,1746534647004,-450.0,0.00019895,2]
[360067670,1746534647013,-450.0,0.00019895,2]
[360067672,1746534647023,-450.0,0.00019895,2]
[360067674,1746534647032,-250.0,0.00019895,2]
[360067676,1746534647041,-484.48851926,0.00019895,2]
[360067678,1746534647050,-450.0,0.00019895,2]
[360067680,1746534647059,-450.0,0.00019895,2]
[360067682,1746534647069,-450.0,0.00019895,2]
[360067685,1746534647080,-514.16,0.00019895,2]
[360067686,1746534647091,-450.0,0.00019895,2]
[360067689,1746534647100,-450.0,0.00019895,2]
[360067691,1746534647110,-450.0,0.00019895,2]
[360067692,1746534647120,-580.33,0.00019895,2]
[360067694,1746534647130,-450.0,0.00019895,2]
[360067696,1746534647139,-450.0,0.00019895,2]
[360067699,1746534647149,-459.53106383,0.00019895,2]
[360067700,1746534647158,-514.46973085,0.00019895,2]
[360067703,1746534647168,-450.0,0.00019895,2]
[360067704,1746534647177,-450.0,0.00019895,2]
[360067706,1746534647187,-180.20392329,0.00019895,2]
[360067708,1746534647196,-431.02241529,0.00019895,2]
[360067710,1746534647205,-450.0,0.00019895,2]
[360067712,1746534647215,-544.98338651,0.00019895,2]
[360067715,1746534647224,-450.0,0.00019895,2]
[360067716,1746534647233,-450.0,0.00019895,2]
[360067719,1746534647243,-450.0,0.00019895,2]
[360067721,1746534647252,-450.0,0.00019895,2]
[360067722,1746534647261,-450.0,0.00019895,2]
[360067724,1746534647271,-314.59,0.00019895,2]
[360067726,1746534647280,-562.00679849,0.00019895,2]
[360067728,1746534647289,-450.0,0.00019895,2]
[360067730,1746534647299,-450.0,0.00019895,2]
[360067732,1746534647308,-450.0,0.00019895,2]
[360067734,1746534647317,-450.0,0.00019895,2]
[360067736,1746534647327,-490.60779098,0.00019895,2]
[360067738,1746534647336,-450.0,0.00019895,2]
[360067740,1746534647346,-450.0,0.00019895,2]
[360067742,1746534647355,-411.77369467,0.00019895,2]
[360067744,1746534647365,-450.0,0.00019895,2]
[360067746,1746534647374,-450.0,0.00019895,2]
[360067749,1746534647384,-450.0,0.00019895,2]
[360067750,1746534647394,-486.36311269,0.00019895,2]
[360067753,1746534647405,-450.0,0.00019895,2]
[360067754,1746534647414,-450.0,0.00019895,2]
[360067757,1746534647424,-450.0,0.00019895,2]
[360067758,1746534647434,-450.0,0.00019895,2]
[360067760,1746534647443,-450.0,0.00019895,2]
[360067762,1746534647452,-517.94623228,0.00019895,2]
[360067764,1746534647461,-450.0,0.00019895,2]
[360067766,1746534647471,-450.0,0.00019895,2]
[360067768,1746534647480,-450.0,0.00019895,2]
[360067770,1746534647489,-450.0,0.00019895,2]
[360067772,1746534647499,-193.58666244,0.00019895,2]
[360067788,1746534647640,-450.0,0.00019895,2]
[360067790,1746534647649,-490.0,0.00019895,2]
[360067792,1746534647659,-457.27,0.00019895,2]
[360067794,1746534647668,-426.83684839,0.00019895,2]
[360067796,1746534647678,-522.87276112,0.00019895,2]
[360067798,1746534647687,-508.56,0.00019895,2]
[360067800,1746534647697,-450.0,0.00019895,2]
[360067802,1746534647706,-450.0,0.00019895,2]
[360067804,1746534647715,-450.0,0.00019895,2]
[360067806,1746534647724,-450.0,0.00019895,2]
[360067808,1746534647733,-450.0,0.00019895,2]
[360067810,1746534647742,-450.0,0.00019895,2]
[360067812,1746534647751,-450.0,0.00019895,2]
[360067814,1746534647761,-482.07389186,0.00019895,2]
[360067816,1746534647769,-450.0,0.00019895,2]
[360067818,1746534647778,-450.0,0.00019895,2]
[360067820,1746534647787,-405.49534162,0.00019895,2]
[360067822,1746534647796,-450.0,0.00019895,2]
[360067824,1746534647806,-609.37,0.00019895,2]
[360067826,1746534647818,-450.0,0.00019895,2]
[360067828,1746534647827,-500.0,0.00019895,2]
[360067831,1746534647836,-450.0,0.00019895,2]
[360067833,1746534647846,-457.1620577,0.00019895,2]
[360067834,1746534647855,-450.0,0.00019895,2]
[360067837,1746534647864,-450.0,0.00019895,2]
[360067839,1746534647874,-450.0,0.00019895,2]
[360067841,1746534647883,-450.0,0.00019895,2]
[360067843,1746534647892,-450.0,0.00019895,2]
[360067844,1746534647901,-450.0,0.00019895,2]
[360067846,1746534647910,-450.0,0.00019895,2]
[360067848,1746534647919,-450.0,0.00019895,2]
[360067850,1746534647928,-450.0,0.00019895,2]
[360067852,1746534647938,-450.0,0.00019895,2]
[360067854,1746534647947,-450.0,0.00019895,2]
[360067856,1746534647956,-450.0,0.00019895,2]
[360067858,1746534647966,-450.0,0.00019895,2]
[360067860,1746534647975,-450.0,0.00019895,2]
[360067863,1746534647988,-325.44505064,0.00019895,2]
[360067864,1746534647999,-450.0,0.00019895,2]
[360067866,1746534648009,-500.0,0.00019895,2]
[360067868,1746534648019,-450.0,0.00019895,2]
[360067871,1746534648029,-470.63,0.00019895,2]
[360067873,1746534648039,-500.0,0.00019895,2]
[360067875,1746534648049,-494.67,0.00019895,2]
[360067877,1746534648059,-450.0,0.00019895,2]
[360067879,1746534648068,-450.0,0.00019895,2]
[360067881,1746534648078,-450.0,0.00019895,2]
[360067883,1746534648091,-450.0,0.00019895,2]
[360067885,1746534648101,-450.0,0.00019895,2]
[360067887,1746534648111,-450.0,0.00019895,2]
[360067889,1746534648120,-450.0,0.00019895,2]
[360067891,1746534648130,-450.0,0.00019895,2]
[360067893,1746534648139,-450.0,0.00019895,2]
[360067894,1746534648148,-450.0,0.00019895,2]
[360067896,1746534648158,-450.0,0.00019895,2]
[360067898,1746534648168,-450.0,0.00019895,2]
[360067901,1746534648178,-450.0,0.00019895,2]
[360067902,1746534648188,-450.0,0.00019895,2]
[360067905,1746534648198,-450.0,0.00019895,2]
[360067907,1746534648207,-450.0,0.00019895,2]
[360067909,1746534648218,-450.0,0.00019895,2]
[360067911,1746534648228,-450.0,0.00019895,2]
[360067913,1746534648239,-450.0,0.00019895,2]
[360067915,1746534648249,-450.0,0.00019895,2]
[360067917,1746534648260,-450.0,0.00019895,2]
[360067919,1746534648270,-450.0,0.00019895,2]
[360067921,1746534648280,-450.0,0.00019895,2]
[360067923,1746534648289,-450.0,0.00019895,2]
[360067925,1746534648299,-591.87,0.00019895,2]
[360067927,1746534648309,-450.0,0.00019895,2]
[360067928,1746534648318,-450.0,0.00019895,2]
[360067930,1746534648327,-450.0,0.00019895,2]
[360067932,1746534648336,-450.0,0.00019895,2]
[360067933,1746534648346,-450.0,0.00019895,2]
[360067934,1746534648355,-450.0,0.00019895,2]
[360067935,1746534648365,-450.0,0.00019895,2]
[360067936,1746534648374,-450.0,0.00019895,2]
[360067937,1746534648383,-450.0,0.00019895,2]
[360067938,1746534648393,-450.0,0.00019895,2]
[360067939,1746534648402,-450.0,0.00019895,2]
[360067940,1746534648411,-450.0,0.00019895,2]
[360067941,1746534648422,-450.0,0.00019895,2]
[360067942,1746534648432,-451.76,0.00019895,2]
[360067943,1746534648441,-450.0,0.00019895,2]
[360067944,1746534648449,-303.47706883,0.00019895,2]
[360067945,1746534648458,-450.0,0.00019895,2]
[360067946,1746534648467,-4740.27,0.00019895,2]
[360067948,1746534648476,-450.0,0.00019895,2]
[360067949,1746534648486,-450.0,0.00019895,2]
[360067951,1746534648495,-450.0,0.00019895,2]
[360067953,1746534648504,-450.0,0.00019895,2]
[360067955,1746534648513,-450.0,0.00019895,2]
[360067957,1746534648523,-211.97,0.00019895,2]
[360067959,1746534648532,-928.14,0.00019895,2]
[360067961,1746534648542,-473.64,0.00019895,2]
[360067963,1746534648551,-450.0,0.00019895,2]
[360067965,1746534648561,-450.0,0.00019895,2]
[360067967,1746534648570,-450.0,0.00019895,2]
[360067968,1746534648580,-450.0,0.00019895,2]
[360067971,1746534648589,-450.0,0.00019895,2]
[360067972,1746534648599,-1392.37,0.00019895,2]
[360067974,1746534648609,-450.0,0.00019895,2]
[360067976,1746534648618,-450.0,0.00019895,2]
[360067979,1746534648628,-450.0,0.00019895,2]
[360067981,1746534648637,-450.0,0.00019895,2]
[360067982,1746534648647,-450.0,0.00019896,2]
[360067985,1746534648656,-450.0,0.00019896,2]
[360067987,1746534648666,-450.0,0.00019896,2]
[360067989,1746534648675,-450.0,0.00019896,2]
[360067991,1746534648685,-450.0,0.00019896,2]
[360067992,1746534648694,-450.0,0.00019896,2]
[360067994,1746534648704,-450.0,0.00019896,2]
[360067996,1746534648713,-450.0,0.00019896,2]
[360067998,1746534648723,-450.0,0.00019896,2]
[360068000,1746534648733,-450.0,0.00019896,2]
[360068002,1746534648742,-450.0,0.00019896,2]
[360068004,1746534648752,-450.0,0.00019896,2]
[360068006,1746534648762,-450.0,0.00019896,2]
[360068008,1746534648771,-450.0,0.00019896,2]
[360068010,1746534648780,-450.0,0.00019896,2]
[360068012,1746534648790,-299.16,0.00019896,2]
[360068015,1746534648800,-450.0,0.00019896,2]
[360068017,1746534648809,-377.65237577,0.00019896,2]
[360068018,1746534648819,-450.0,0.00019896,2]
[360068021,1746534648829,-450.0,0.00019896,2]
[360068022,1746534648838,-450.0,0.00019896,2]
[360068025,1746534648848,-450.0,0.00019896,2]
[360068027,1746534648857,-450.0,0.00019896,2]
[360068028,1746534648866,-450.0,0.00019896,2]
[360068031,1746534648875,-242.47429849,0.00019896,2]
[360068033,1746534648885,-450.0,0.00019896,2]
[360068035,1746534648895,-450.0,0.00019896,2]
[360068037,1746534648905,-175.996,0.00019897,2]
[360068039,1746534648914,-2348.926,0.00019897,2]
[360068041,1746534648923,-151.16028354,0.00019898,2]
[360068043,1746534648933,-450.0,0.00019898,2]
[360068044,1746534648943,-346.87698552,0.00019898,2]
[360068047,1746534648952,-450.0,0.00019898,2]
[360068049,1746534648962,-450.0,0.00019898,2]
[360068051,1746534648970,-450.0,0.00019898,2]
[360068053,1746534648980,-450.0,0.00019898,2]
[360068054,1746534648989,-450.0,0.00019898,2]
[360068057,1746534648999,-450.0,0.00019898,2]
[360068059,1746534649009,-450.0,0.00019898,2]
[360068060,1746534649018,-450.0,0.00019898,2]
[360068063,1746534649027,-450.0,0.00019898,2]
[360068064,1746534649036,-450.0,0.00019898,2]
[360068067,1746534649046,-269.85900909,0.00019898,2]
[360068069,1746534649055,-305.58125092,0.00019898,2]
[360068071,1746534649065,-430.8,0.00019898,2]
[360068073,1746534649074,-450.0,0.00019898,2]
[360068075,1746534649085,-450.0,0.00019898,2]
[360068077,1746534649096,-450.0,0.00019898,2]
[360068079,1746534649106,-177.27,0.00019898,2]
[360068081,1746534649115,-450.0,0.00019898,2]
[360068083,1746534649124,-450.0,0.00019898,2]
[360068085,1746534649134,-151.16028354,0.00019898,2]
[360068087,1746534649143,-151.16028354,0.00019899,2]
[360068089,1746534649153,-151.16028354,0.00019899,2]
[360068091,1746534649163,-450.0,0.00019899,2]
[360068093,1746534649173,-450.0,0.00019899,2]
[360068094,1746534649185,-450.0,0.00019899,2]
[360068096,1746534649194,-450.0,0.00019899,2]
[360068098,1746534649204,-450.0,0.00019899,2]
[360068100,1746534649213,-450.0,0.00019899,2]
[360068103,1746534649222,-409.80050933,0.00019899,2]
[360068104,1746534649232,-450.0,0.00019899,2]
[360068106,1746534649241,-450.0,0.00019899,2]
[360068108,1746534649251,-450.0,0.00019899,2]
[360068110,1746534649261,-450.0,0.00019899,2]
[360068112,1746534649271,-450.0,0.00019899,2]
[360068114,1746534649280,-450.0,0.00019899,2]
[360068116,1746534649291,-453.5115,0.00019899,2]
[360068119,1746534649302,-500.0,0.00019899,2]
[360068121,1746534649312,-450.0,0.00019899,2]
[360068123,1746534649321,-450.0,0.00019899,2]
[360068125,1746534649331,-450.0,0.00019899,2]
[360068126,1746534649341,-450.0,0.00019899,2]
[360068129,1746534649351,-450.0,0.00019899,2]
[360068131,1746534649361,-450.0,0.00019899,2]
[360068133,1746534649370,-450.0,0.00019899,2]
[360068135,1746534649379,-450.0,0.00019899,2]
[360068136,1746534649389,-450.0,0.00019899,2]
[360068139,1746534649399,-374.8005269,0.00019899,2]
[360068141,1746534649408,-450.0,0.00019899,2]
[360068142,1746534649418,-450.0,0.00019899,2]
[360068144,1746534649428,-450.0,0.00019899,2]
[360068146,1746534649438,-592.77,0.00019899,2]
[360068148,1746534649447,-450.0,0.00019899,2]
[360068150,1746534649456,-450.0,0.00019899,2]
[360068152,1746534649466,-450.0,0.00019899,2]
[360068154,1746534649474,-450.0,0.00019899,2]
[360068157,1746534649484,-631.1,0.00019899,2]
[360068158,1746534649492,-450.0,0.00019899,2]
[360068160,1746534649502,-450.0,0.00019899,2]
[360068163,1746534649511,-17759.87,0.00019899,2]
[360068165,1746534649520,-450.0,0.00019899,2]
[360068167,1746534649529,-513.53619116,0.00019899,2]
[360068168,1746534649538,-450.0,0.00019899,2]
[360068171,1746534649548,-450.0,0.00019899,2]
[360068173,1746534649557,-450.0,0.00019899,2]
[360068175,1746534649566,-450.0,0.00019899,2]
[360068177,1746534649575,-151.16028354,0.00019899,2]
[360068179,1746534649584,-151.16028354,0.000199,2]
[360068181,1746534649593,-5306.28,0.000199,2]
[360068182,1746534649603,-12500.0,0.000199,2]
[360068184,1746534649612,-151.16028354,0.000199,2]
[360068186,1746534649621,-11852.15978714,0.000199,2]
[360068188,1746534649630,-1000.0,0.000199,2]
[360068190,1746534649639,-79710.13370171,0.000199,2]
[360068193,1746534649649,-1994.06533843,0.000199,2]
[360068194,1746534649658,-3926.30963263,0.000199,2]
[360068197,1746534649667,-12500.0,0.000199,2]
[360068199,1746534649676,-147029.54408989,0.000199,2]
[360068201,1746534649685,-155.59151402,0.000199,2]
[360068203,1746534649694,-227.073121,0.000199,3]
[360068205,1746534649703,-167.98843184,0.000199,2]
[360068207,1746534649713,-5800.0,0.000199,2]
[360068209,1746534649722,-7612.77119952,0.000199,2]
[360068211,1746534649731,-376.19560847,0.000199,2]
[360068212,1746534649741,-150.0,0.00019918,7]
[360068214,1746534649750,-18419.98698158,0.0001995,2]
[360068217,1746534649759,-351.81343855,0.00019962,2]
[360068219,1746534649768,-21232.89136027,0.00019969,2]
[360068221,1746534649778,-514.0,0.0001997,2]
[360068223,1746534649788,-500.0,0.00019971,2]
[360068225,1746534649797,-450.0,0.00019971,2]
[360068227,1746534649806,-450.0,0.00019971,2]
[360068229,1746534649815,-450.0,0.00019971,2]
[360068231,1746534649824,-450.0,0.00019971,2]
[360068233,1746534649833,-326.39,0.00019971,2]
[360068235,1746534649842,-631.1,0.00019971,2]
[360068236,1746534649851,-450.0,0.00019971,2]
[360068238,1746534649860,-450.0,0.00019971,2]
[360068240,1746534649870,-491.66404043,0.00019972,2]
[360068242,1746534649879,-470.0,0.00019972,2]
[360068245,1746534649888,-450.0,0.00019972,2]
[360068246,1746534649899,-450.0,0.00019972,2]
[360068249,1746534649909,-450.0,0.00019972,2]
[360068251,1746534649919,-450.0,0.00019972,2]
[360068253,1746534649930,-450.0,0.00019972,2]
[360068254,1746534649939,-450.0,0.00019972,2]
[360068256,1746534649948,-319.23,0.00019972,2]
[360068258,1746534649957,-450.0,0.00019972,2]
[360068260,1746534649967,-450.0,0.00019972,2]
[360068262,1746534649976,-450.0,0.00019972,2]
[360068264,1746534649985,-292.96,0.00019972,2]
[360068266,1746534649995,-450.0,0.00019972,2]
[360068268,1746534650003,-450.0,0.00019972,2]
[360068270,1746534650013,-450.0,0.00019972,2]
[360068272,1746534650022,-450.0,0.00019972,2]
[360068274,1746534650031,-450.0,0.00019972,2]
[360068276,1746534650040,-558.96235802,0.00019972,2]
[360068278,1746534650049,-500.0,0.00019972,2]
[360068280,1746534650059,-450.0,0.00019972,2]
[360068282,1746534650068,-500.0,0.00019972,2]
[360068284,1746534650078,-450.0,0.00019972,2]
[360068286,1746534650090,-450.0,0.00019972,2]
[360068288,1746534650100,-441.43,0.00019972,2]
[360068290,1746534650108,-450.0,0.00019972,2]
[360068292,1746534650118,-450.0,0.00019972,2]
[360068294,1746534650128,-450.0,0.00019972,2]
[360068296,1746534650137,-450.0,0.00019972,2]
[360068298,1746534650146,-450.0,0.00019972,2]
[360068300,1746534650155,-450.0,0.00019972,2]
[360068302,1746534650164,-450.0,0.00019972,2]
[360068304,1746534650175,-450.0,0.00019972,2]
[360068306,1746534650184,-450.0,0.00019972,2]
[360068308,1746534650193,-450.0,0.00019972,2]
[360068310,1746534650202,-450.0,0.00019972,2]
[360068312,1746534650212,-591.87,0.00019972,2]
[360068314,1746534650222,-450.0,0.00019972,2]
[360068316,1746534650232,-450.0,0.00019972,2]
[360068318,1746534650242,-450.0,0.00019972,2]
[360068320,1746534650251,-450.0,0.00019972,2]
[360068334,1746534650260,-597.18,0.00019972,2]
[360068336,1746534650385,-487.27,0.00019972,2]
[360068338,1746534650394,-450.0,0.00019972,2]
[360068340,1746534650405,-450.0,0.00019972,2]
[360068342,1746534650415,-4740.27,0.00019972,2]
[360068344,1746534650424,-450.0,0.00019972,2]
[360068346,1746534650434,-270.8,0.00019972,2]
[360068348,1746534650443,-450.0,0.00019972,2]
[360068350,1746534650452,-928.14,0.00019972,2]
[360068352,1746534650462,-450.0,0.00019972,2]
[360068354,1746534650471,-450.0,0.00019972,2]
[360068357,1746534650481,-1392.37,0.00019972,2]
[360068359,1746534650490,-450.0,0.00019972,2]
[360068360,1746534650500,-450.0,0.00019972,2]
[360068362,1746534650509,-18203.0,0.00019973,2]
[360068364,1746534650518,-1043.0,0.00019973,2]
[360068366,1746534650528,-300.0,0.00019973,2]
[360068369,1746534650538,-916.0,0.00019975,2]
[360068370,1746534650547,-1243.0,0.00019975,2]
[360068373,1746534650556,-582.0,0.00019975,2]
[360068375,1746534650567,-551.0,0.00019975,2]
[360068377,1746534650576,-1452.0,0.00019975,2]
[360068379,1746534650585,-5933.0,0.00019975,2]
[360068381,1746534650594,-587.75358307,0.00019983,2]
[360068382,1746534650604,-450.0,0.00019983,2]
[360068385,1746534650613,-450.0,0.00019983,2]
[360068387,1746534650623,-450.0,0.00019983,2]
[360068389,1746534650631,-450.0,0.00019983,2]
[360068391,1746534650641,-450.0,0.00019983,2]
[360068392,1746534650650,-450.0,0.00019983,2]
[360068394,1746534650659,-450.0,0.00019983,2]
[360068396,1746534650669,-609.37,0.00019983,2]
[360068398,1746534650679,-450.0,0.00019983,2]
[360068400,1746534650688,-500.0,0.00019983,2]
[360068402,1746534650697,-450.0,0.00019983,2]
[360068404,1746534650706,-450.0,0.00019983,2]
[360068406,1746534650716,-475.65,0.00019983,2]
[360068408,1746534650725,-450.0,0.00019983,2]
[360068410,1746534650735,-450.0,0.00019983,2]
[360068412,1746534650744,-450.0,0.00019983,2]
[360068414,1746534650754,-450.0,0.00019983,2]
[360068416,1746534650763,-450.0,0.00019983,2]
[360068418,1746534650772,-313.85218649,0.00019983,2]
[360068420,1746534650781,-450.0,0.00019983,2]
[360068422,1746534650790,-450.0,0.00019983,2]